fUSD/lending_fUSD_20250530
["ID","MTS","AMOUNT","RATE_DAILY","PERIOD"]
[363113815,1748585450989,-420.0,0.00022191,2]
[363113816,1748585450999,-151.0,0.00022191,7]
[363113817,1748585451009,-3531.94,0.00022191,2]
[363113818,1748585451019,-2173.11,0.00022191,2]
[363113819,1748585451029,-440.32593374,0.00022191,2]
[363113821,1748585451039,-1303.13,0.00022191,2]
[363113823,1748585451048,-11272.61,0.00022191,2]
[363113825,1748585451058,-1089.62,0.00022191,2]
[363113827,1748585451067,-573.79,0.00022191,2]
[363113829,1748585451077,-448.34,0.00022191,2]
[363113831,1748585451088,-423.69,0.00022191,2]
[363113833,1748585451098,-1610.91,0.00022191,2]
[363113835,1748585451109,-484.73,0.00022191,2]
[363113837,1748585451119,-570.91,0.00022191,2]
[363113839,1748585451129,-1046.76,0.00022191,2]
[363113841,1748585451139,-420.0,0.00022191,2]
[363113843,1748585451150,-868.93,0.00022191,2]
[363113845,1748585451159,-1250.3,0.00022191,2]
[363113847,1748585451169,-3249.24,0.00022191,2]
[363113849,1748585451179,-751.91,0.00022191,2]
[363113851,1748585451192,-729.86,0.00022191,2]
[363113853,1748585451203,-35544.81,0.00022191,2]
[363113855,1748585451213,-420.0,0.00022191,2]
[363113857,1748585451223,-1458.25,0.00022191,2]
[363113859,1748585451232,-420.0,0.00022191,2]
[363113861,1748585451242,-898.96,0.00022191,2]
[363113863,1748585451251,-5355.96,0.00022191,2]
[363113865,1748585451261,-887.02,0.00022191,2]
[363113867,1748585451271,-1274.66,0.00022191,2]
[363113869,1748585451280,-6861.5,0.00022191,2]
[363113871,1748585451290,-680.34,0.00022191,2]
[363113873,1748585451300,-912.75,0.00022191,2]
[363113875,1748585451309,-420.0,0.00022191,2]
[363113877,1748585451319,-453.12,0.00022191,2]
[363113879,1748585451329,-2482.52,0.00022191,2]
[363113881,1748585451339,-3308.2,0.00022191,2]
[363113883,1748585451348,-420.0,0.00022191,2]
[363113885,1748585451358,-151.0,0.00022191,7]
[363113887,1748585451367,-153.644153,0.00022191,7]
[363113889,1748585451377,-420.0,0.00022191,2]
[363113892,1748585451387,-420.0,0.00022191,2]
[363113894,1748585451397,-1878.61,0.00022191,2]
[363113896,1748585451408,-844.32,0.00022191,2]
[363113898,1748585451418,-613.41,0.00022191,2]
[363113900,1748585451427,-4424.55,0.00022191,2]
[363113902,1748585451439,-539.42,0.00022191,2]
[363113904,1748585451449,-179.690675,0.00022191,7]
[363113906,1748585451459,-850.91,0.00022191,2]
[363113908,1748585451469,-1795.33,0.00022191,2]
[363113910,1748585451479,-7716.17,0.00022191,2]
[363113912,1748585451489,-4082.46,0.00022191,2]
[363113914,1748585451499,-1446.4,0.00022191,2]
[363113916,1748585451509,-568.39,0.00022191,2]
[363113918,1748585451521,-1698.27,0.00022191,2]
[363113920,1748585451531,-151.0,0.00022191,7]
[363113922,1748585451542,-11688.35,0.00022191,2]
[363113924,1748585451552,-2172.14,0.00022191,2]
[363113926,1748585451562,-806.61,0.00022191,2]
[363113928,1748585451573,-151.0,0.00022191,7]
[363113930,1748585451583,-428.94,0.00022191,2]
[363113932,1748585451592,-10179.48,0.00022191,2]
[363113934,1748585451602,-1150.42,0.00022191,2]
[363113936,1748585451612,-420.0,0.00022191,2]
[363113938,1748585451623,-717.88,0.00022191,2]
[363113940,1748585451632,-1331.36,0.00022191,2]
[363113942,1748585451643,-420.0,0.00022191,2]
[363113944,1748585451652,-445.01,0.00022191,2]
[363113946,1748585451662,-1614.84,0.00022191,2]
[363113948,1748585451672,-1784.65,0.00022191,2]
[363113950,1748585451682,-683.0,0.00022191,2]
[363113952,1748585451692,-1097.89,0.00022191,2]
[363113954,1748585451702,-888.76,0.00022191,2]
[363113956,1748585451712,-420.0,0.00022191,2]
[363113958,1748585451721,-420.0,0.00022191,2]
[363113960,1748585451731,-1853.26,0.00022191,2]
[363113962,1748585451740,-1834.18,0.00022191,2]
[363113964,1748585451750,-420.0,0.00022191,2]
[363113966,1748585451759,-3085.65,0.00022191,2]
[363113968,1748585451769,-1351.08,0.00022191,2]
[363113970,1748585451779,-681.06,0.00022191,2]
[363113972,1748585451789,-420.0,0.00022191,2]
[363113974,1748585451798,-2241.3,0.00022191,2]
[363113976,1748585451809,-420.0,0.00022191,2]
[363113978,1748585451818,-1520.73,0.00022191,2]
[363113980,1748585451828,-425.22,0.00022191,2]
[363113982,1748585451838,-1142.88,0.00022191,2]
[363113984,1748585451848,-1047.84,0.00022191,2]
[363113986,1748585451857,-511.66,0.00022191,2]
[363113988,1748585451866,-12003.21,0.00022191,2]
[363113990,1748585451876,-1715.12,0.00022191,2]
[363113992,1748585451885,-151.0,0.00022191,7]
[363113994,1748585451895,-151.0,0.00022191,7]
[363113996,1748585451904,-906.34,0.00022191,2]
[363113998,1748585451914,-849.38,0.00022191,2]
[363114000,1748585451923,-806.03,0.00022191,2]
[363114002,1748585451933,-420.0,0.00022191,2]
[363114004,1748585451944,-151.0,0.00022191,7]
[363114006,1748585451953,-884.35,0.00022191,2]
[363114008,1748585451962,-1351.97,0.00022191,2]
[363114010,1748585451971,-177.831976,0.00022191,7]
[363114012,1748585451981,-4040.66,0.00022191,2]
[363114014,1748585451991,-780.76,0.00022191,2]
[363114016,1748585452000,-23674.46,0.00022191,2]
[363114018,1748585452010,-563.01,0.00022191,2]
[363114020,1748585452019,-891.8,0.00022191,2]
[363114022,1748585452029,-2638.17,0.00022191,2]
[363114024,1748585452038,-420.0,0.00022191,2]
[363114026,1748585452047,-8128.2,0.00022191,2]
[363114028,1748585452057,-151.0,0.00022191,7]
[363114030,1748585452067,-151.0,0.00022191,7]
[363114032,1748585452076,-1566.57,0.00022191,2]
[363114034,1748585452088,-549.17,0.00022191,2]
[363114036,1748585452099,-1336.07,0.00022191,2]
[363114038,1748585452113,-1023.81,0.00022191,2]
[363114040,1748585452123,-856.42,0.00022191,2]
[363114042,1748585452133,-4280.08,0.00022191,2]
[363114044,1748585452143,-713.74,0.00022191,2]
[363114046,1748585452153,-7089.98,0.00022191,2]
[363114048,1748585452163,-420.0,0.00022191,2]
[363114050,1748585452172,-989.13,0.00022191,2]
[363114052,1748585452186,-978.05,0.00022191,2]
[363114054,1748585452197,-1464.38,0.00022191,2]
[363114056,1748585452207,-612.9,0.00022191,2]
[363114066,1748585452298,-420.0,0.00022191,2]
[363114067,1748585452308,-2563.12,0.00022191,2]
[363114068,1748585452316,-1794.39,0.00022191,2]
[363114069,1748585452325,-420.0,0.00022191,2]
[363114070,1748585452333,-420.0,0.00022191,2]
[363114071,1748585452342,-1366.23,0.00022191,2]
[363114072,1748585452351,-2938.9,0.00022191,2]
[363114073,1748585452360,-1415.28,0.00022191,2]
[363114074,1748585452369,-1003.76,0.00022191,2]
[363114075,1748585452378,-3682.54,0.00022191,2]
[363114077,1748585452388,-1183.35,0.00022191,2]
[363114079,1748585452398,-420.0,0.00022191,2]
[363114081,1748585452407,-607.19,0.00022191,2]
[363114083,1748585452416,-428.3,0.00022191,2]
[363114085,1748585452426,-1599.42,0.00022191,2]
[363114087,1748585452436,-815.01,0.00022191,2]
[363114089,1748585452445,-2740.18,0.00022191,2]
[363114091,1748585452455,-439.33,0.00022191,2]
[363114093,1748585452464,-420.0,0.00022191,2]
[363114095,1748585452474,-3246.65,0.00022191,2]
[363114097,1748585452483,-590.65,0.00022191,2]
[363114099,1748585452493,-3576.92,0.00022191,2]
[363114101,1748585452502,-5225.3,0.00022191,2]
[363114103,1748585452512,-554.11,0.00022191,2]
[363114105,1748585452521,-420.0,0.00022191,2]
[363114107,1748585452531,-163.29,0.00022191,2]
[363114109,1748585452540,-420.0,0.00022191,2]
[363114111,1748585452550,-924.47,0.00022191,2]
[363114113,1748585452559,-21985.04,0.00022191,2]
[363114115,1748585452569,-420.0,0.00022191,2]
[363114117,1748585452578,-1222.67,0.00022191,2]
[363114119,1748585452587,-1252.95,0.00022191,2]
[363114120,1748585452596,-420.0,0.00022191,2]
[363114122,1748585452606,-151.0,0.00022191,7]
[363114125,1748585452616,-645.68,0.00022191,2]
[363114126,1748585452626,-4404.34,0.00022191,2]
[363114128,1748585452638,-3290.4,0.00022191,2]
[363114131,1748585452647,-698.39,0.00022191,2]
[363114133,1748585452657,-471.29,0.00022191,2]
[363114134,1748585452666,-1094.42,0.00022191,2]
[363114137,1748585452676,-420.0,0.00022191,2]
[363114139,1748585452685,-2358.63,0.00022191,2]
[363114141,1748585452695,-420.0,0.00022191,2]
[363114142,1748585452705,-420.0,0.00022191,2]
[363114144,1748585452714,-420.0,0.00022191,2]
[363114147,1748585452724,-420.0,0.00022191,2]
[363114149,1748585452733,-923.73,0.00022191,2]
[363114150,1748585452743,-3377.15,0.00022191,2]
[363114152,1748585452752,-5449.55,0.00022191,2]
[363114154,1748585452761,-420.0,0.00022191,2]
[363114156,1748585452771,-653.09,0.00022191,2]
[363114159,1748585452780,-420.0,0.00022191,2]
[363114161,1748585452789,-151.0,0.00022191,7]
[363114163,1748585452799,-2778.37,0.00022191,2]
[363114164,1748585452808,-437.94,0.00022191,2]
[363114166,1748585452817,-151.0,0.00022191,7]
[363114168,1748585452826,-467.59,0.00022191,2]
[363114170,1748585452836,-848.54,0.00022191,2]
[363114172,1748585452845,-1537.71,0.00022191,2]
[363114174,1748585452855,-485.40147891,0.00022191,2]
[363114176,1748585452864,-3307.4,0.00022191,2]
[363114178,1748585452874,-420.0,0.00022191,2]
[363114180,1748585452883,-607.43,0.00022191,2]
[363114182,1748585452892,-420.0,0.00022191,2]
[363114184,1748585452902,-1154.89,0.00022191,2]
[363114186,1748585452911,-736.56,0.00022191,2]
[363114188,1748585452921,-420.0,0.00022191,2]
[363114190,1748585452931,-420.0,0.00022191,2]
[363114192,1748585452941,-787.92,0.00022191,2]
[363114194,1748585452950,-5233.57,0.00022191,2]
[363114196,1748585452959,-1751.79,0.00022191,2]
[363114198,1748585452969,-737.63,0.00022191,2]
[363114200,1748585452979,-1142.72,0.00022191,2]
[363114202,1748585452988,-1028.77,0.00022191,2]
[363114204,1748585452998,-744.89,0.00022191,2]
[363114206,1748585453007,-11878.67,0.00022191,2]
[363114208,1748585453016,-10107.04,0.00022191,2]
[363114210,1748585453025,-1124.35,0.00022191,2]
[363114212,1748585453034,-236.0,0.00022192,7]
[363114214,1748585453044,-150.55,0.00022192,2]
[363114216,1748585453053,-771.4,0.000222,2]
[363114218,1748585453062,-767.0,0.000222,2]
[363114220,1748585453071,-237.0,0.000222,2]
[363114222,1748585453081,-375.0,0.000222,2]
[363114225,1748585453091,-190.01186892,0.0002221,2]
[363114226,1748585453100,-190.01186892,0.00022238,2]
[363114228,1748585453110,-1199.75308712,0.00022243,2]
[363114230,1748585453120,-158.58266552,0.00022256,2]
[363114232,1748585453129,-190.01186892,0.00022266,2]
[363114234,1748585453139,-151.0,0.00022269,7]
[363114236,1748585453148,-151.0,0.00022269,7]
[363114238,1748585453158,-180.460028,0.00022269,7]
[363114240,1748585453167,-243.0,0.00022269,2]
[363114242,1748585453176,-150.0,0.00022269,2]
[363114245,1748585453188,-1314.0,0.00022269,2]
[363114247,1748585453198,-941.0,0.00022269,2]
[363114249,1748585453208,-634.0,0.00022269,2]
[363114251,1748585453217,-814.0,0.00022269,2]
[363114253,1748585453227,-556.0,0.00022269,2]
[363114254,1748585453236,-1466.0,0.00022269,2]
[363114256,1748585453245,-1268.0,0.00022269,2]
[363114258,1748585453255,-588.0,0.00022269,2]
[363114260,1748585453264,-924.0,0.00022269,2]
[363114262,1748585453274,-1155.0,0.00022269,2]
[363114264,1748585453283,-190.01186892,0.00022294,2]
[363114266,1748585453292,-1199.75308712,0.00022304,2]
[363114268,1748585453301,-190.01186892,0.00022322,2]
[363114270,1748585453311,-158.58266552,0.00022344,2]
[363114272,1748585453320,-5218.90146478,0.00022349,2]
[363114274,1748585453330,-2562.7888642,0.00022349,2]
[363114276,1748585453339,-266.17146737,0.00022349,2]
[363114278,1748585453348,-190.01186892,0.0002235,2]
[363114280,1748585453358,-1199.75308712,0.00022365,2]
[363114282,1748585453367,-27.12292743,0.0002237,2]
[363114368,1748585454363,-919.39818052,0.00021917,2]
[363114370,1748585454375,-359.29181948,0.00021917,2]
[363114371,1748585454385,-420.0,0.00021917,2]
[363114373,1748585454395,-882.0,0.00022001,2]
[363114375,1748585454405,-1278.69,0.00022191,2]
[363114376,1748585454414,-473.79464016,0.0002237,2]
[363114378,1748585454424,-1701.24627178,0.0002237,2]
[363114380,1748585454434,-1000.0,0.0002237,2]
[363114381,1748585454444,-500.0,0.0002237,2]
[363114383,1748585454453,-150.0,0.00022404,3]
[363114385,1748585454463,-150.0,0.00022414,3]
[363114386,1748585454474,-150.0,0.00022424,3]
[363114388,1748585454483,-193.14683,0.0002243,2]
[363114390,1748585454493,-158.58266552,0.00022431,2]
[363114391,1748585454503,-150.0,0.00022434,3]
[363114393,1748585454513,-154.020996,0.00022439,7]
[363114395,1748585454522,-3239.57515752,0.00022439,3]
[363114396,1748585454532,-500.0,0.00022439,2]
[363114398,1748585454542,-220055.01505111,0.0002244,7]
[363114401,1748585454578,-913.76378646,0.0002244,7]
[363114403,1748585454590,-367.23924987,0.0002244,7]
[363114411,1748585454683,-7230.14636129,0.0002244,7]
[363114413,1748585454702,-764.745945,0.0002244,7]
[363114435,1748585455117,-420.0,0.00021917,2]
[363114437,1748585455127,-58.38877304,0.00021917,2]
[363114440,1748585455139,-361.61122696,0.00021917,2]
[363114442,1748585455151,-1743.67909724,0.0002244,7]
[363114506,1748585456229,-286.72,0.00021125,2]
[363114507,1748585456241,-838.25,0.00021125,2]
[363114508,1748585456250,-420.0,0.00021917,2]
[363114509,1748585456260,-420.0,0.00021917,2]
[363114510,1748585456270,-420.0,0.00021917,2]
[363114511,1748585456280,-806.92700462,0.00021917,2]
[363114512,1748585456296,-897.40698998,0.00021917,2]
[363114513,1748585456341,-7146.49977808,0.00021917,2]
[363114514,1748585456361,-4932.26622732,0.00021917,2]
[363114515,1748585456371,-420.0,0.00021917,2]
[363114516,1748585456381,-420.0,0.00021917,2]
[363114517,1748585456391,-420.0,0.00021917,2]
[363114518,1748585456400,-369.26875501,0.00022191,2]
[363114519,1748585456413,-50.73124499,0.00022191,2]
[363114520,1748585456423,-320.30081479,0.00022191,2]
[363114521,1748585456433,-420.0,0.00022191,2]
[363114522,1748585456444,-13783.1,0.00022191,2]
[363114523,1748585456454,-420.0,0.00022191,2]
[363114524,1748585456464,-32358.79919247,0.0002244,7]
[363114525,1748585456476,-4744.79967454,0.0002244,7]
[363114526,1748585456488,-619.76020313,0.0002244,7]
[363114527,1748585456500,-688.08525818,0.0002244,7]
[363114528,1748585456511,-1873.14887,0.0002244,7]
[363114529,1748585456522,-2292.4,0.0002244,7]
[363114530,1748585456534,-69037.93458194,0.0002244,7]
[363114531,1748585456549,-420.0,0.00022191,2]
[363114532,1748585456559,-696.14335463,0.0002244,7]
[363114533,1748585456570,-1882.92225957,0.0002244,7]
[363114534,1748585456582,-2671.46347189,0.0002244,7]
[363114535,1748585456625,-2487.79861121,0.0002244,7]
[363114538,1748585532746,225.79,0.00013699,2]
[363114539,1748585534526,-174.65465267,0.00020187,2]
[363114541,1748585537757,35.347406,0.00019164,2]
[363114542,1748585537780,464.652594,0.00019164,2]
[363114544,1748585571986,500.0,0.00019164,2]
[363114555,1748586004879,5207.51,0.00025,60]
[363114560,1748586229103,1077.0,0.00019337,2]
[363114561,1748586233706,1077.0,0.00019018,2]
[363114562,1748586238274,1077.0,0.00019018,2]
[363114565,1748586394154,-300.0,0.00019999,2]
[363114566,1748586394178,-255.59632066,0.0002,2]
[363114569,1748586442011,1014.59,0.00018065,2]
[363114573,1748586510096,3663.80215293,0.000149,2]
[363114575,1748586519365,4947.57754669,0.00013368,2]
[363114576,1748586545730,-163.7738703,0.000199,2]
[363114577,1748586545767,-367.53,0.00019949,2]
[363114578,1748586545809,-200.0,0.00019949,2]
[363114579,1748586545847,-250.0,0.00019952,2]
[363114580,1748586545884,-161.65993035,0.00019973,2]
[363114581,1748586545920,-500.0,0.00019973,2]
[363114582,1748586545957,-500.0,0.00019973,2]
[363114583,1748586545995,-300.0,0.00019998,2]
[363114584,1748586546032,-200.0,0.00019998,2]
[363114585,1748586546070,-500.0,0.00019999,2]
[363114586,1748586546109,-500.0,0.00019999,2]
[363114587,1748586546147,-500.0,0.00019999,2]
[363114588,1748586546188,-500.0,0.00019999,2]
[363114589,1748586546226,-210.67204859,0.00019999,2]
[363114590,1748586546265,-500.0,0.00019999,2]
[363114591,1748586546304,-500.0,0.00019999,2]
[363114592,1748586546343,-500.0,0.00019999,2]
[363114593,1748586546383,-500.0,0.00019999,2]
[363114594,1748586546421,-500.0,0.00019999,2]
[363114595,1748586546442,-163.7738703,0.00019999,2]
[363114596,1748586546463,-336.2261297,0.00019999,2]
[363114597,1748586546476,-31.3038703,0.00019999,2]
[363114598,1748586546496,-200.0,0.00019999,2]
[363114599,1748586546517,-250.0,0.00019999,2]
[363114600,1748586546534,-18.6961297,0.00019999,2]
[363114601,1748586546544,-142.96380065,0.00019999,2]
[363114602,1748586546560,-357.03619935,0.00019999,2]
[363114603,1748586546572,-142.96380065,0.00019999,2]
[363114604,1748586546585,-357.03619935,0.00019999,2]
[363114605,1748586546595,-142.96380065,0.00019999,2]
[363114606,1748586546620,-300.0,0.00019999,2]
[363114607,1748586546636,-57.03619935,0.00019999,2]
[363114608,1748586546646,-142.96380065,0.00019999,2]
[363114609,1748586546667,-367.32784345,0.00019999,2]
[363114610,1748586546677,-132.67215655,0.00019999,2]
[363114611,1748586546693,-500.0,0.00019999,2]
[363114612,1748586546709,-0.07913649,0.00019999,2]
[363114613,1748586546719,-499.92086351,0.00019999,2]
[363114614,1748586546736,-0.07913649,0.00019999,2]
[363114615,1748586546745,-499.92086351,0.0002,2]
[363114616,1748586546770,-210.67204859,0.0002,2]
[363114617,1748586546782,-500.0,0.0002,2]
[363114618,1748586546806,-500.0,0.0002,2]
[363114619,1748586546819,-500.0,0.0002,2]
[363114620,1748586546831,-500.0,0.0002,2]
[363114621,1748586546856,-500.0,0.0002,2]
[363114622,1748586546867,-292.72830152,0.0002,2]
[363114627,1748586606682,205.76,0.00013699,2]
[363114635,1748586631761,-156.34,0.0001999,2]
[363114638,1748586631772,-263.63,0.0001999,2]
[363114640,1748586631782,-59.14857813,0.0001999,2]
[363114647,1748586631914,-204.48142187,0.0001999,2]
[363114648,1748586631924,-1200.0,0.00019999,2]
[363114649,1748586631936,-300.0,0.00019999,2]
[363114650,1748586631946,-12343.9302873,0.0002,2]
[363114651,1748586631957,-952.3723156,0.0002,2]
[363114652,1748586632065,-1545.73815394,0.0002,2]
[363114680,1748586637764,-3488.7058103,0.0002,2]
[363114681,1748586637786,-747.72575256,0.0002,2]
[363114682,1748586637863,-416520.89504837,0.0002,2]
[363114683,1748586637873,-3430.04266971,0.0002,2]
[363114684,1748586637883,-540871.57568902,0.0002,2]
[363114685,1748586637892,-2738.91,0.00020045,2]
[363114686,1748586637902,-200.0,0.0002005,2]
[363114687,1748586637912,-250.0,0.0002005,2]
[363114688,1748586637921,-192.84,0.00020055,2]
[363114689,1748586637931,-7314.81,0.00020078,2]
[363114690,1748586637943,-5929.06372778,0.000201,2]
[363114691,1748586637953,-208.01,0.00020159,2]
[363114692,1748586637963,-205.76,0.00020187,2]
[363114693,1748586637973,-1000.0,0.00020199,2]
[363114694,1748586637982,-3430.04266963,0.00020259,2]
[363114695,1748586637992,-500.0,0.0002026,2]
[363114696,1748586638002,-156.58,0.00020261,2]
[363114697,1748586638012,-150.0,0.00020263,7]
[363114698,1748586638021,-250.0,0.00020287,2]
[363114699,1748586638030,-1014.59,0.00020329,2]
[363114700,1748586638040,-286.64,0.00020331,2]
[363114701,1748586638049,-164.69,0.00020339,2]
[363114702,1748586638058,-1077.0,0.00020355,2]
[363114703,1748586638067,-150.0,0.00020401,2]
[363114704,1748586638076,-376.86,0.00020427,2]
[363114706,1748586638086,-1236.74,0.00020465,2]
[363114708,1748586638095,-151.0,0.00020479,2]
[363114710,1748586638105,-6721.92,0.00020491,2]
[363114712,1748586638114,-3430.04266963,0.00020518,2]
[363114714,1748586638124,-634.7602123,0.00020521,2]
[363114716,1748586638134,-152.20915799,0.00020534,2]
[363114718,1748586638143,-172.49,0.00020749,2]
[363114720,1748586638153,-210.0,0.0002077,2]
[363114722,1748586638162,-3430.04266963,0.00020777,2]
[363114724,1748586638172,-155.85,0.0002083,2]
[363114726,1748586638181,-155.85,0.00020845,2]
[363114727,1748586638192,-155.85,0.00020859,2]
[363114729,1748586638201,-155.85,0.00020874,2]
[363114731,1748586638210,-155.85,0.00020889,2]
[363114732,1748586638219,-155.85,0.00020904,2]
[363114733,1748586638228,-155.85,0.00020919,2]
[363114735,1748586638237,-155.85,0.00020934,2]
[363114736,1748586638247,-160.09,0.00020986,2]
[363114738,1748586638256,-200.0,0.00021,2]
[363114739,1748586638265,-3430.04266963,0.00021036,2]
[363114741,1748586638275,-1500.0,0.00021036,2]
[363114742,1748586638284,-3250.71,0.00021068,14]
[363114744,1748586638294,-16333.52,0.00021092,2]
[363114745,1748586638303,-156.0,0.00021105,2]
[363114747,1748586638312,-1115.157653,0.00021105,2]
[363114749,1748586638322,-154.81765476,0.00021105,2]
[363114750,1748586638331,-151.50464141,0.00021105,2]
[363114752,1748586638340,-668.65185757,0.00021105,2]
[363114753,1748586638349,-207.4,0.00021105,2]
[363114755,1748586638358,-151.0,0.00021105,2]
[363114756,1748586638368,-210.0,0.0002116,2]
[363114758,1748586638377,-3430.04266963,0.00021294,2]
[363114759,1748586638386,-500.0,0.00021356,2]
[363114761,1748586638396,-533.03,0.00021369,2]
[363114762,1748586638405,-1314.0,0.00021417,2]
[363114764,1748586638414,-284.369,0.00021417,2]
[363114765,1748586638423,-4068.0,0.00021417,2]
[363114767,1748586638433,-1077.0,0.00021427,2]
[363114769,1748586638443,-210.0,0.0002154,2]
[363114770,1748586638452,-3430.04266963,0.00021553,2]
[363114772,1748586638462,-204.69806397,0.00021571,2]
[363114774,1748586638472,-46404.06141761,0.00021572,2]
[363114775,1748586638481,-172.49,0.00021605,2]
[363114777,1748586638490,-420.0,0.00021777,2]
[363114779,1748586638500,-3430.04266963,0.00021812,2]
[363114780,1748586638510,-3499.7625,0.00021817,2]
[363114782,1748586638520,-1000.0,0.00021817,2]
[363114784,1748586638534,-174.9952,0.00021817,2]
[363114785,1748586638543,-5000.0,0.00021817,2]
[363114786,1748586638553,-1680.0,0.00021881,2]
[363114787,1748586638563,-200.0,0.0002189,2]
[363114789,1748586638572,-250.0,0.0002189,2]
[363114790,1748586638581,-230.73107341,0.000219,2]
[363114791,1748586638590,-230.73107332,0.000219,2]
[363114793,1748586638600,-230.73107332,0.000219,2]
[363114794,1748586638610,-230.73107332,0.000219,2]
[363114796,1748586638620,-230.73107332,0.000219,2]
[363114797,1748586638629,-230.73107332,0.000219,2]
[363114798,1748586638638,-230.73107332,0.000219,2]
[363114800,1748586638648,-230.73107332,0.000219,2]
[363114801,1748586638657,-230.73107332,0.000219,2]
[363114803,1748586638666,-230.73107332,0.000219,2]
[363114805,1748586638676,-230.73107332,0.000219,2]
[363114806,1748586638685,-230.73107332,0.000219,2]
[363114808,1748586638696,-230.73107332,0.000219,2]
[363114809,1748586638705,-230.73107332,0.000219,2]
[363114811,1748586638714,-230.73107332,0.000219,2]
[363114812,1748586638723,-230.73107332,0.000219,2]
[363114814,1748586638733,-230.73107332,0.000219,2]
[363114816,1748586638742,-230.73107332,0.000219,2]
[363114817,1748586638751,-190.08817702,0.00021907,2]
[363114819,1748586638760,-2979.63078921,0.00021914,2]
[363114820,1748586638770,-420.0,0.00021917,2]
[363114822,1748586638780,-420.0,0.00021917,2]
[363114823,1748586638789,-420.0,0.00021917,2]
[363114825,1748586638798,-420.0,0.00021917,2]
[363114827,1748586638808,-420.0,0.00021917,2]
[363114828,1748586638817,-420.0,0.00021917,2]
[363114830,1748586638827,-420.0,0.00021917,2]
[363114831,1748586638836,-367.14887992,0.00021917,2]
[363114833,1748586638846,-557.72,0.00021917,2]
[363114835,1748586638855,-420.0,0.00021917,2]
[363114836,1748586638865,-420.0,0.00021917,2]
[363114838,1748586638874,-429.02365213,0.00021917,2]
[363114840,1748586638884,-423.7571613,0.00021917,2]
[363114841,1748586638893,-420.0,0.00021917,2]
[363114843,1748586638903,-420.0,0.00021917,2]
[363114845,1748586638916,-420.0,0.00021917,2]
[363114846,1748586638925,-622.34,0.00021917,2]
[363114848,1748586638935,-420.0,0.00021917,2]
[363114850,1748586638946,-420.0,0.00021917,2]
[363114851,1748586638955,-706.57,0.00021917,2]
[363114853,1748586638964,-420.0,0.00021917,2]
[363114855,1748586638974,-182.28550188,0.00021917,2]
[363114856,1748586638983,-553.4,0.00021917,2]
[363114858,1748586638993,-420.0,0.00021917,2]
[363114859,1748586639003,-420.0,0.00021917,2]
[363114861,1748586639012,-420.0,0.00021917,2]
[363114863,1748586639022,-420.0,0.00021917,2]
[363114864,1748586639031,-420.0,0.00021917,2]
[363114866,1748586639043,-420.0,0.00021917,2]
[363114868,1748586639052,-420.0,0.00021917,2]
[363114869,1748586639062,-479.63,0.00021917,2]
[363114871,1748586639071,-530.45803274,0.00021917,2]
[363114872,1748586639081,-420.0,0.00021917,2]
[363114874,1748586639090,-186.46508155,0.00021917,2]
[363114876,1748586639100,-420.0,0.00021917,2]
[363114878,1748586639110,-420.0,0.00021917,2]
[363114880,1748586639119,-420.0,0.00021917,2]
[363114881,1748586639129,-420.0,0.00021917,2]